fUSD/lending_fUSD_20260426
["ID","MTS","AMOUNT","RATE_DAILY","PERIOD"]
[421171518,1777194632174,-150.0,8.576e-05,2]
[421171519,1777194632184,-150.0,8.593e-05,2]
[421171520,1777194632194,-150.0,8.61e-05,2]
[421171521,1777194632204,-460.0,8.61e-05,2]
[421171522,1777194632215,-486.0,8.617e-05,2]
[421171523,1777194632225,-279.0,8.623e-05,2]
[421171524,1777194632235,-150.0,8.627e-05,2]
[421171525,1777194632245,-170.0,8.63e-05,2]
[421171526,1777194632255,-150.0,8.642e-05,2]
[421171527,1777194632265,-150.0,8.644e-05,2]
[421171528,1777194632275,-150.0,8.662e-05,2]
[421171529,1777194632285,-150.0,8.679e-05,2]
[421171530,1777194632295,-150.0,8.696e-05,2]
[421171531,1777194632305,-150.0,8.696e-05,2]
[421171533,1777194632316,-21838.49457439,8.7e-05,2]
[421171535,1777194632326,-150.0,8.713e-05,2]
[421171536,1777194632336,-150.0,8.73e-05,2]
[421171537,1777194632345,-150.0,8.747e-05,2]
[421171538,1777194632355,-150.0,8.765e-05,2]
[421171539,1777194632366,-150.0,8.777e-05,2]
[421171540,1777194632377,-150.0,8.782e-05,2]
[421171541,1777194632387,-150.0,8.799e-05,2]
[421171542,1777194632398,-5200.0,8.8e-05,3]
[421171543,1777194632408,-150.0,8.816e-05,2]
[421171544,1777194632418,-150.0,8.822e-05,2]
[421171545,1777194632427,-150.0,8.833e-05,2]
[421171546,1777194632437,-150.0,8.851e-05,2]
[421171547,1777194632447,-150.0,8.868e-05,2]
[421171548,1777194632457,-150.0,8.885e-05,2]
[421171549,1777194632473,-150.0,8.885e-05,2]
[421171550,1777194632483,-10500.0,8.9e-05,3]
[421171551,1777194632496,-150.0,8.902e-05,2]
[421171552,1777194632506,-1996.653,8.904e-05,2]
[421171553,1777194632516,-150.0,8.912e-05,2]
[421171554,1777194632526,-150.0,8.919e-05,2]
[421171555,1777194632536,-500.0,8.936e-05,2]
[421171556,1777194632546,-150.0,8.936e-05,2]
[421171557,1777194632556,-150.0,8.954e-05,2]
[421171558,1777194632567,-150.0,8.971e-05,2]
[421171559,1777194632578,-150.0,8.979e-05,2]
[421171560,1777194632587,-150.0,8.988e-05,2]
[421171561,1777194632597,-14178.55438506,9e-05,3]
[421171562,1777194632635,-1621.44561494,9e-05,3]
[421171563,1777194632645,-150.0,9.005e-05,2]
[421171564,1777194632655,-150.0,9.022e-05,2]
[421171565,1777194632665,-150.0,9.04e-05,2]
[421171566,1777194632675,-150.0,9.047e-05,2]
[421171567,1777194632685,-150.0,9.057e-05,2]
[421171568,1777194632695,-6786.3412,9.059e-05,2]
[421171569,1777194632706,-150.0,9.074e-05,2]
[421171570,1777194632716,-150.0,9.074e-05,2]
[421171571,1777194632726,-150.0,9.091e-05,2]
[421171572,1777194632736,-150.0,9.108e-05,2]
[421171573,1777194632746,-150.0,9.126e-05,2]
[421171574,1777194632756,-150.0,9.137e-05,2]
[421171575,1777194632766,-150.0,9.143e-05,2]
[421171576,1777194632776,-500.0,9.158e-05,2]
[421171577,1777194632786,-500.0,9.158e-05,2]
[421171578,1777194632797,-500.0,9.158e-05,2]
[421171579,1777194632807,-500.0,9.158e-05,2]
[421171580,1777194632817,-500.0,9.158e-05,2]
[421171581,1777194632827,-500.0,9.158e-05,2]
[421171582,1777194632837,-500.0,9.158e-05,2]
[421171583,1777194632847,-500.0,9.158e-05,2]
[421171584,1777194632862,-500.0,9.158e-05,2]
[421171585,1777194632874,-500.0,9.158e-05,2]
[421171586,1777194632883,-500.0,9.158e-05,2]
[421171587,1777194632893,-500.0,9.158e-05,2]
[421171588,1777194632903,-500.0,9.158e-05,2]
[421171589,1777194632913,-500.0,9.158e-05,2]
[421171590,1777194632923,-500.0,9.158e-05,2]
[421171591,1777194632934,-500.0,9.158e-05,2]
[421171592,1777194632944,-500.0,9.158e-05,2]
[421171593,1777194632954,-500.0,9.158e-05,2]
[421171594,1777194632964,-500.0,9.158e-05,2]
[421171595,1777194632975,-500.0,9.158e-05,2]
[421171596,1777194632985,-500.0,9.158e-05,2]
[421171597,1777194632997,-500.0,9.158e-05,2]
[421171598,1777194633007,-500.0,9.158e-05,2]
[421171599,1777194633017,-500.0,9.158e-05,2]
[421171600,1777194633028,-500.0,9.158e-05,2]
[421171601,1777194633038,-500.0,9.158e-05,2]
[421171602,1777194633048,-500.0,9.158e-05,2]
[421171603,1777194633058,-402.04958752,9.158e-05,2]
[421171604,1777194633068,-500.0,9.158e-05,2]
[421171605,1777194633079,-500.0,9.158e-05,2]
[421171606,1777194633089,-500.0,9.158e-05,2]
[421171607,1777194633099,-500.0,9.158e-05,2]
[421171608,1777194633109,-500.0,9.158e-05,2]
[421171609,1777194633119,-500.0,9.158e-05,2]
[421171610,1777194633130,-500.0,9.158e-05,2]
[421171611,1777194633140,-500.0,9.158e-05,2]
[421171612,1777194633151,-500.0,9.158e-05,2]
[421171613,1777194633161,-500.0,9.158e-05,2]
[421171614,1777194633171,-500.0,9.158e-05,2]
[421171615,1777194633180,-500.0,9.158e-05,2]
[421171616,1777194633190,-500.0,9.158e-05,2]
[421171617,1777194633200,-500.0,9.158e-05,2]
[421171618,1777194633210,-500.0,9.158e-05,2]
[421171619,1777194633220,-500.0,9.158e-05,2]
[421171620,1777194633230,-500.0,9.158e-05,2]
[421171621,1777194633240,-500.0,9.158e-05,2]
[421171622,1777194633250,-500.0,9.158e-05,2]
[421171623,1777194633265,-500.0,9.158e-05,2]
[421171624,1777194633275,-500.0,9.158e-05,2]
[421171625,1777194633285,-500.0,9.158e-05,2]
[421171626,1777194633296,-500.0,9.158e-05,2]
[421171627,1777194633307,-500.0,9.158e-05,2]
[421171628,1777194633317,-500.0,9.158e-05,2]
[421171629,1777194633327,-500.0,9.158e-05,2]
[421171630,1777194633337,-500.0,9.158e-05,2]
[421171631,1777194633347,-650.0,9.158e-05,2]
[421171632,1777194633357,-500.0,9.158e-05,2]
[421171633,1777194633367,-500.0,9.158e-05,2]
[421171634,1777194633378,-500.0,9.158e-05,2]
[421171635,1777194633388,-500.0,9.158e-05,2]
[421171636,1777194633398,-500.0,9.158e-05,2]
[421171637,1777194633408,-500.0,9.158e-05,2]
[421171638,1777194633418,-500.0,9.158e-05,2]
[421171639,1777194633429,-500.0,9.158e-05,2]
[421171640,1777194633440,-500.0,9.158e-05,2]
[421171641,1777194633450,-500.0,9.158e-05,2]
[421171642,1777194633460,-500.0,9.158e-05,2]
[421171643,1777194633470,-500.0,9.158e-05,2]
[421171644,1777194633481,-500.0,9.158e-05,2]
[421171645,1777194633491,-500.0,9.158e-05,2]
[421171646,1777194633501,-500.0,9.158e-05,2]
[421171647,1777194633512,-500.0,9.158e-05,2]
[421171648,1777194633522,-500.0,9.158e-05,2]
[421171649,1777194633533,-500.0,9.158e-05,2]
[421171650,1777194633543,-500.0,9.158e-05,2]
[421171651,1777194633554,-500.0,9.158e-05,2]
[421171652,1777194633565,-500.0,9.158e-05,2]
[421171653,1777194633575,-500.0,9.158e-05,2]
[421171654,1777194633585,-600.0,9.158e-05,2]
[421171655,1777194633595,-3437.3926021,9.159e-05,2]
[421171656,1777194638031,-22893.30999285,9.159e-05,2]
[421171657,1777194638183,-83534.30550505,9.159e-05,2]
[421171658,1777194638199,-150.0,9.16e-05,2]
[421171659,1777194638215,-150.0,9.177e-05,2]
[421171660,1777194638231,-150.0,9.182e-05,2]
[421171661,1777194638247,-150.0,9.194e-05,2]
[421171662,1777194638262,-150.0,9.211e-05,2]
[421171663,1777194638277,-150.0,9.229e-05,2]
[421171664,1777194638291,-500.0,9.243e-05,2]
[421171665,1777194638305,-500.0,9.243e-05,2]
[421171666,1777194638320,-500.0,9.243e-05,2]
[421171667,1777194638333,-500.0,9.243e-05,2]
[421171668,1777194638347,-150.0,9.246e-05,2]
[421171669,1777194638363,-1000.0,9.258e-05,2]
[421171670,1777194638377,-1000.0,9.259e-05,2]
[421171671,1777194638391,-250.0,9.259e-05,2]
[421171672,1777194638406,-500.0,9.259e-05,2]
[421171673,1777194638420,-498.39241101,9.259e-05,2]
[421171674,1777194638433,-500.0,9.259e-05,2]
[421171675,1777194638448,-207.10669531,9.259e-05,2]
[421171676,1777194638461,-490.94241054,9.259e-05,2]
[421171677,1777194638475,-33050.56336614,9.26e-05,2]
[421171687,1777194640688,-4784.985299,9.26e-05,2]
[421171716,1777194641177,-7818.42843277,9.26e-05,2]
[421171739,1777194643040,-536.16821049,9.26e-05,2]
[421171744,1777194864163,-5634.89152224,0.00015,14]
[421171745,1777194864198,-365.10847776,0.0001611,15]
[421171746,1777194870100,-6000.0,0.0001611,15]
[421171749,1777195832227,-449.80508817,7.919e-05,2]
[421171750,1777195832240,-50.19491183,7.919e-05,2]
[421171751,1777195832250,-280.0,8.219e-05,2]
[421171752,1777195832259,-586.93777524,8.426e-05,2]
[421171753,1777195832272,-613.06222476,8.426e-05,2]
[421171754,1777195832282,-300.0,8.426e-05,2]
[421171755,1777195832291,-300.0,8.426e-05,2]
[421171756,1777195832301,-205.0,8.426e-05,2]
[421171757,1777195832311,-185.4553491,8.427e-05,2]
[421171758,1777195832323,-538.18293477,8.427e-05,2]
[421171759,1777195832335,-476.36171613,8.427e-05,2]
[421171760,1777195832344,-983.96203762,8.428e-05,2]
[421171761,1777195832356,-391.34847306,8.428e-05,2]
[421171762,1777195832405,-377.599432,8.428e-05,2]
[421171763,1777195832416,-2718.95205732,8.428e-05,2]
[421171764,1777195832426,-289.861,8.428e-05,2]
[421171765,1777195832436,-232.5269094,8.5e-05,2]
[421171767,1777195832448,-5636.97451873,8.5e-05,2]
[421171768,1777195832458,-351.41,8.599e-05,2]
[421171769,1777195832467,-190.462161,8.599e-05,2]
[421171770,1777195832477,-250.27271642,8.696e-05,2]
[421171771,1777195832486,-351.41,8.873e-05,2]
[421171772,1777195832495,-3700.0,8.9e-05,3]
[421171773,1777195832505,-7500.0,9e-05,3]
[421171774,1777195832515,-351.41,9.147e-05,2]
[421171775,1777195832525,-20657.38175941,9.188e-05,2]
[421171776,1777195832534,-170.6421459,9.189e-05,2]
[421171777,1777195832544,-274.0,9.194e-05,2]
[421171778,1777195832553,-151.0,9.257e-05,2]
[421171779,1777195832564,-1008.81748156,9.259e-05,3]
[421171780,1777195832574,-500.0,9.26e-05,2]
[421171781,1777195832584,-729.34082764,9.346e-05,2]
[421171782,1777195832593,-2060.26135989,9.359e-05,2]
[421171783,1777195832603,-351.41,9.421e-05,2]
[421171784,1777195832613,-539.0,9.46e-05,5]
[421171785,1777195832623,-150.0,9.616e-05,2]
[421171786,1777195832632,-150.0,9.616e-05,2]
[421171787,1777195832642,-150.0,9.616e-05,2]
[421171788,1777195832652,-150.0,9.616e-05,2]
[421171789,1777195832662,-150.3716138,9.616e-05,2]
[421171790,1777195832671,-150.0,9.616e-05,2]
[421171791,1777195832681,-209.69729653,9.616e-05,2]
[421171792,1777195832691,-150.00000001,9.616e-05,2]
[421171793,1777195832700,-150.0,9.616e-05,2]
[421171794,1777195832710,-212.44769369,9.618e-05,2]
[421171795,1777195832720,-578.20924308,9.618e-05,2]
[421171796,1777195832731,-187.78006525,9.618e-05,2]
[421171797,1777195832740,-646.65982734,9.618e-05,2]
[421171798,1777195832749,-200.0,9.618e-05,2]
[421171799,1777195832759,-743.50770149,9.618e-05,2]
[421171800,1777195832769,-151.0,9.618e-05,2]
[421171801,1777195832779,-279.9045709,9.618e-05,2]
[421171802,1777195832788,-174.61919141,9.618e-05,2]
[421171803,1777195832798,-187.78006525,9.618e-05,2]
[421171804,1777195832807,-151.12206715,9.618e-05,2]
[421171805,1777195832816,-187.78006525,9.618e-05,2]
[421171806,1777195832826,-500.0,9.633e-05,2]
[421171807,1777195832836,-500.0,9.633e-05,2]
[421171808,1777195832845,-19453.74338879,9.657e-05,2]
[421171813,1777195838320,-500.0,9.656e-05,2]
[421171814,1777195838331,-500.0,9.656e-05,2]
[421171815,1777195838341,-155.05164175,9.656e-05,2]
[421171816,1777195838481,-344.94835825,9.656e-05,2]
[421171817,1777195838490,-500.0,9.656e-05,2]
[421171818,1777195838500,-500.0,9.656e-05,2]
[421171819,1777195838510,-500.0,9.656e-05,2]
[421171820,1777195838519,-500.0,9.656e-05,2]
[421171821,1777195838528,-500.0,9.656e-05,2]
[421171822,1777195838538,-500.0,9.656e-05,2]
[421171823,1777195838547,-500.0,9.656e-05,2]
[421171824,1777195838556,-215.20495876,9.656e-05,2]
[421171825,1777195838566,-500.0,9.656e-05,2]
[421171826,1777195838576,-2633.30805798,9.657e-05,2]
[421171827,1777195838589,-3015.00009,9.657e-05,2]
[421171828,1777195838600,-12587.39000855,9.657e-05,2]
[421171829,1777195838612,-490.0,9.657e-05,2]
[421171830,1777195838630,-1579.63301567,9.657e-05,2]
[421171831,1777195838670,-979.47501245,9.657e-05,2]
[421171895,1777195840413,-342.65998326,9.657e-05,2]
[421171896,1777195840424,-1522.08332917,9.657e-05,2]
[421171897,1777195840473,-265.16908496,9.657e-05,2]
[421171898,1777195840526,-429.22884342,9.657e-05,2]
[421171899,1777195840537,-669.878833,9.657e-05,2]
[421171900,1777195840549,-513.92439638,9.657e-05,2]
[421171901,1777195840641,-827.231402,9.657e-05,2]
[421171902,1777195840653,-254.35801595,9.657e-05,2]
[421171903,1777195840994,-9100.82722552,9.657e-05,2]
[421171904,1777195841005,-7269.508879,9.657e-05,2]
[421171905,1777195841015,-15888.61298154,9.657e-05,2]
[421171906,1777195841027,-689.72524371,9.657e-05,2]
[421171916,1777195843321,-22841.02575625,9.657e-05,2]
[421171917,1777195843330,-179.99999999,9.659e-05,2]
[421171918,1777195843340,-151.0,9.673e-05,2]
[421171919,1777195843349,-150.0,9.693e-05,2]
[421171920,1777195843360,-351.42,9.695e-05,2]
[421171921,1777195843370,-150.0,9.714e-05,2]
[421171922,1777195843380,-151.0,9.728e-05,2]
[421171923,1777195843389,-150.0,9.769e-05,2]
[421171924,1777195843399,-2992.59378906,9.782e-05,2]
[421171925,1777195843408,-151.0,9.783e-05,2]
[421171926,1777195843419,-150.0,9.811e-05,2]
[421171927,1777195843428,-151.0,9.838e-05,2]
[421171928,1777195843438,-150.0,9.845e-05,2]
[421171929,1777195843448,-528.0,9.881e-05,5]
[421171930,1777195843458,-428.0,9.881e-05,5]
[421171931,1777195843467,-151.0,9.893e-05,2]
[421171932,1777195843477,-150.0,9.908e-05,2]
[421171933,1777195843486,-150.0,9.922e-05,2]
[421171934,1777195843495,-151.0,9.948e-05,2]
[421171935,1777195843504,-501.64017088,9.973e-05,2]
[421171936,1777195843514,-151.0,9.997e-05,2]
[421171937,1777195843523,-151.0,9.997e-05,2]
[421171938,1777195843532,-150.0,9.998e-05,2]
[421171939,1777195843542,-150.0,9.999e-05,2]
[421171940,1777195843552,-343.65968738,9.999e-05,2]
[421171941,1777195843561,-500.0,9.999e-05,2]
[421171942,1777195843570,-548.87468771,9.999e-05,2]
[421171943,1777195843580,-151099.73314445,0.0001,2]
[421171944,1777195843591,-244.56252078,0.0001,2]
[421171945,1777195843600,-151.0,0.0001,2]
[421171946,1777195843609,-3024.97995573,0.0001,2]
[421171947,1777195843619,-3685.15735117,0.0001,2]
[421171948,1777195843630,-3355.06865341,0.0001,2]
[421171949,1777195843644,-1337.47762059,0.0001,2]
[421171950,1777195843655,-3363.39103581,0.0001,2]
[421171951,1777195843664,-332.73196669,0.0001,2]
[421171952,1777195843674,-150.99685285,0.0001,2]
[421171953,1777195843683,-153.04392597,0.0001,2]
[421171954,1777195843692,-153.39392436,0.0001,2]
[421171955,1777195843702,-152.65507999,0.0001,2]
[421171956,1777195843711,-200.0,0.0001,2]
[421171957,1777195843721,-151.0,0.0001,2]
[421171958,1777195843730,-151.0,0.0001,2]
[421171959,1777195843739,-500.0,0.0001,2]
[421171960,1777195843748,-500.0,0.0001,2]
[421171961,1777195843758,-151.0,0.0001,2]
[421171962,1777195843767,-500.0,0.0001,2]
[421171963,1777195843777,-151.0,0.0001,2]
[421171964,1777195843786,-500.0,0.0001,2]
[421171965,1777195843796,-151.0,0.0001,2]
[421171967,1777195843806,-500.0,0.0001,2]
[421171968,1777195843815,-151.0,0.0001,2]
[421171969,1777195843825,-500.0,0.0001,2]
[421171970,1777195843834,-151.0,0.0001,2]
[421171971,1777195843844,-500.0,0.0001,2]
[421171972,1777195843853,-151.0,0.0001,2]
[421171973,1777195843863,-500.0,0.0001,2]
[421171974,1777195843873,-151.0,0.0001,2]
[421171975,1777195843883,-151.0,0.0001,2]
[421171976,1777195843892,-500.0,0.0001,2]
[421171977,1777195843902,-151.0,0.0001,2]
[421171978,1777195843912,-500.0,0.0001,2]
[421171979,1777195843922,-151.0,0.0001,2]
[421171980,1777195843932,-500.0,0.0001,2]
[421171981,1777195843941,-151.0,0.0001,2]
[421171982,1777195843951,-500.0,0.0001,2]
[421171983,1777195843961,-151.0,0.0001,2]
[421171984,1777195843971,-500.0,0.0001,2]
[421171985,1777195843981,-500.0,0.0001,2]
[421171986,1777195843991,-151.0,0.0001,2]
[421171987,1777195844001,-151.0,0.0001,2]
[421171988,1777195844011,-151.0,0.0001,2]
[421171989,1777195844021,-500.0,0.0001,2]
[421171990,1777195844030,-151.0,0.0001,2]
[421171991,1777195844040,-500.0,0.0001,2]
[421171992,1777195844050,-151.0,0.0001,2]
[421171993,1777195844060,-500.0,0.0001,2]
[421171994,1777195844070,-151.0,0.0001,2]
[421171995,1777195844079,-500.0,0.0001,2]
[421171996,1777195844088,-151.0,0.0001,2]
[421171997,1777195844098,-500.0,0.0001,2]
[421171998,1777195844107,-151.0,0.0001,2]
[421171999,1777195844117,-500.0,0.0001,2]
[421172001,1777195844126,-151.0,0.0001,2]
[421172002,1777195844136,-500.0,0.0001,2]
[421172003,1777195844146,-151.0,0.0001,2]
[421172004,1777195844155,-500.0,0.0001,2]
[421172005,1777195844164,-151.0,0.0001,2]
[421172006,1777195844174,-500.0,0.0001,2]
[421172007,1777195844184,-296.72539018,0.0001,2]
[421172008,1777195844193,-500.0,0.0001,2]
[421172009,1777195844202,-500.0,0.0001,2]
[421172010,1777195844212,-500.0,0.0001,2]
[421172011,1777195844221,-500.0,0.0001,2]
[421172012,1777195844230,-500.0,0.0001,2]
[421172013,1777195844240,-2000.0,0.0001,2]
[421172014,1777195844249,-151.0,0.00010003,2]
[421172015,1777195844259,-150.0,0.00010005,2]
[421172016,1777195844268,-151.0,0.00010058,2]
[421172017,1777195844278,-150.0,0.00010074,2]
[421172018,1777195844288,-150.0,0.00010102,2]
[421172019,1777195844297,-151.0,0.00010113,2]
[421172020,1777195844307,-150.0,0.00010151,2]
[421172021,1777195844317,-194.72792766,0.00010166,2]
[421172022,1777195844327,-200.0,0.00010166,2]
[421172023,1777195844336,-771.01748645,0.00010166,2]
[421172024,1777195844345,-290.26104003,0.00010166,2]
[421172025,1777195844355,-181.08010149,0.00010166,2]
[421172026,1777195844365,-151.00000001,0.00010166,2]
[421172027,1777195844375,-194.72792766,0.00010166,2]
[421172028,1777195844384,-151.0,0.00010168,2]
[421172029,1777195844393,-1000.0,0.00010181,2]
[421172030,1777195844403,-150.0,0.00010199,2]
[421172031,1777195844412,-2000.0,0.000102,2]
[421172032,1777195844421,-151.0,0.00010223,2]
[421172033,1777195844431,-150.0,0.00010227,2]
[421172034,1777195844441,-151.0,0.00010278,2]
[421172035,1777195844450,-150.0,0.00010296,2]
[421172036,1777195844460,-150.0,0.00010303,2]
[421172037,1777195844469,-151.0,0.00010333,2]
[421172038,1777195844478,-150.0,0.0001038,2]
[421172039,1777195844488,-150.0,0.00010394,2]
[421172040,1777195844498,-2000.0,0.000104,2]
[421172041,1777195844507,-150.0,0.00010456,2]
[421172042,1777195844516,-150.0,0.00010491,2]
[421172043,1777195844526,-749.73812923,0.00010508,2]
[421172044,1777195844535,-150.0,0.00010532,2]
[421172045,1777195844545,-200.0,0.00010548,2]
[421172046,1777195844554,-344.46,0.00010574,2]
[421172047,1777195844563,-1743.36,0.00010574,2]
[421172048,1777195844573,-2578.14,0.00010574,2]
[421172049,1777195844582,-150.0,0.00010588,2]
[421172050,1777195844591,-52079.79563596,0.00010599,2]
[421172051,1777195844601,-2000.0,0.000106,2]
[421172052,1777195844612,-150.0,0.00010609,2]
[421172053,1777195844626,-150.0,0.00010685,2]
[421172054,1777195844640,-150.0,0.00010685,2]
[421172055,1777195844653,-150.0,0.00010685,2]
[421172056,1777195844666,-163.57725414,0.00010685,2]
[421172057,1777195844680,-151.0,0.00010697,2]
[421172058,1777195844692,-151.0,0.00010697,2]
[421172059,1777195844703,-15011.53139008,0.000107,2]
[421172060,1777195844727,-377.65200136,0.000107,2]
[421172061,1777195846646,-151.0,0.0001,2]
[421172062,1777195846658,-74820.64170127,0.000107,2]
[421172063,1777195846672,-38858.51616,0.000107,2]
[421172064,1777195846697,-9127.29266927,0.000107,2]
[421172065,1777195846711,-733.71024716,0.000107,2]
[421172066,1777195846771,-314.95388647,0.000107,2]
[421172067,1777195846787,-3885.0,0.000107,2]
[421172077,1777197032192,-280.0,8.219e-05,2]
[421172078,1777197032203,-250.0,8.424e-05,2]
[421172079,1777197032213,-165.76535848,8.629e-05,2]
[421172080,1777197032222,-237.6161635,8.629e-05,2]
[421172081,1777197032233,-300.0,9.04e-05,2]
[421172082,1777197032242,-300.0,9.04e-05,2]
[421172083,1777197032263,-300.0,9.04e-05,2]
[421172084,1777197032273,-1200.0,9.04e-05,2]
[421172085,1777197032283,-193.0,9.041e-05,2]
[421172086,1777197032294,-5000.0,9.041e-05,2]
[421172087,1777197032310,-500.0,9.041e-05,2]
[421172088,1777197032320,-250.0,9.041e-05,2]
[421172089,1777197032331,-238.00105941,9.412e-05,2]
[421172090,1777197032346,-340.20818367,9.412e-05,2]
[421172091,1777197032356,-252.21021013,9.412e-05,2]
[421172092,1777197032367,-150.0,9.518e-05,2]
[421172093,1777197032377,-1680.0,9.944e-05,2]
[421172094,1777197032387,-247.0,0.00010119,2]
[421172095,1777197032397,-165.08,0.0001045,2]
[421172096,1777197032407,-150.0,0.0001045,2]
[421172097,1777197032417,-3383.82369179,0.00010451,2]
[421172098,1777197032429,-318.38102534,0.00010451,2]
[421172099,1777197032447,-2808.26898585,0.00010451,2]
[421172100,1777197032460,-4293.43565038,0.00010451,2]
[421172101,1777197032473,-1557.63357986,0.00010451,2]
[421172102,1777197032486,-1565.63480144,0.00010451,2]
[421172103,1777197032499,-816.11829527,0.00010451,2]
[421172104,1777197032511,-2414.2214,0.00010451,2]
[421172105,1777197032535,-7084.15217007,0.00010451,2]
[421172106,1777197032546,-2500.0,0.00010451,2]
[421172107,1777197032557,-1009.9228,0.00010451,2]
[421172108,1777197032566,-5000.0,0.00010451,2]
[421172109,1777197032576,-1246.48025646,0.00010484,2]
[421172110,1777197032587,-174.61919141,0.00010489,2]
[421172111,1777197032597,-342.83925386,0.0001049,2]
[421172112,1777197032607,-3213.93,0.00010496,2]
[421172113,1777197032617,-9999.99,0.00010496,2]
[421172114,1777197032627,-299.99,0.00010496,2]
[421172115,1777197032637,-150.99,0.00010496,2]
[421172116,1777197032647,-9999.99,0.00010496,2]
[421172117,1777197032657,-3005.09,0.00010496,2]
[421172118,1777197032667,-8292.16,0.00010496,2]
[421172119,1777197032677,-499.8254195,0.000105,2]
[421172120,1777197032687,-361.23958645,0.00010541,2]
[421172121,1777197032705,-240.56178116,0.0001055,2]
[421172122,1777197032715,-5.17387563,0.0001055,2]
[421172123,1777197032728,-494.82612437,0.0001055,2]
[421172124,1777197032739,-234.21228139,0.0001055,2]
[421172125,1777197032748,-635.02277319,0.0001055,2]
[421172126,1777197032759,-3577.489,0.0001055,2]
[421172127,1777197032769,-231.889,0.0001055,2]
[421172128,1777197032779,-352.0,0.00010551,5]
[421172129,1777197032790,-10729.73502363,0.00010551,2]
[421172130,1777197032802,-258.87161287,0.00010551,2]
[421172131,1777197032814,-407.0,0.00010551,2]
[421172132,1777197032838,-400.0,0.00010551,2]
[421172134,1777197037741,-2659.0,0.00010551,2]
[421172135,1777197037847,-30236.30166726,0.00010551,2]
[421172186,1777197039997,-1019.64210675,0.00010551,2]
[421172199,1777197044358,-380.51299992,0.00010551,2]
[421172200,1777197047204,-508.10951,0.00010551,2]
[421172201,1777197047216,-2875.51583003,0.00010551,2]
[421172202,1777197047229,-343.02208537,0.00010551,2]
[421172203,1777197047241,-883.97804352,0.00010551,2]
[421172204,1777197047302,-20538.755009,0.00010551,2]
[421172205,1777197047313,-958.79153409,0.00010551,2]
[421172206,1777197047326,-152489.73733269,0.00010551,2]
[421172207,1777197047481,-502.0,0.00010551,2]
[421172208,1777197047640,-4088.5,0.00010551,2]
[421172209,1777197047903,-3877.35,0.00010551,2]
[421172210,1777197047957,-726.65367492,0.00010551,2]
[421172216,1777197209649,-280.0,8.219e-05,2]
[421172217,1777197209673,-2861.992,0.0001034,2]
[421172218,1777197209696,-185.511,0.0001034,2]
[421172219,1777197209725,-855.5673,0.00010351,2]
[421172220,1777197209755,-300.0,0.0001045,2]
[421172221,1777197209779,-2500.0,0.00010451,2]
[421172222,1777197209804,-5000.0,0.00010451,2]
[421172223,1777197209831,-599.60298507,0.00010473,2]
[421172224,1777197247205,160.0,0.0001048,2]
[421172225,1777197305853,160.0,0.0001048,2]
[421172226,1777197306590,185.0,0.0001048,2]
[421172227,1777197355428,1649.24088682,0.00010397,2]
[421172228,1777197359642,1649.2408868,0.00010474,2]
[421172229,1777197425524,160.0,0.0001048,2]
[421172230,1777197485173,161.0,0.0001048,2]
[421172231,1777197491748,280.0,8.219e-05,2]
[421172232,1777197494866,549.74696228,0.00010397,2]
[421172233,1777197502886,549.74696226,0.00010474,2]
[421172234,1777197556389,4650.3265,0.00010391,2]
[421172235,1777197605740,161.0,0.0001048,2]
[421172236,1777197607112,2500.0,0.00010391,2]
[421172237,1777197622365,4602.02451677,8.7e-05,2]
[421172239,1777198003133,-280.0,8.219e-05,2]
[421172240,1777198003164,-71.90521928,8.698e-05,2]
[421172244,1777198231830,-280.0,8.219e-05,2]